bitfinex/quotes_BTCUSD_20250526
["timestamp","ask_amount","ask_price","bid_price","bid_amount"]
[1748228742117,0.00204978,109250.0,109240.0,1.18736304]
[1748228742363,0.00304978,109250.0,109240.0,1.18836304]
[1748228742739,0.00304978,109250.0,109240.0,1.18436304]
[1748228742946,0.01954978,109250.0,109240.0,1.18436304]
[1748228743934,0.01954978,109250.0,109240.0,1.03804304]
[1748228743935,0.03504978,109250.0,109240.0,1.03804304]
[1748228744099,0.03504978,109250.0,109240.0,1.33732304]
[1748228747891,0.03504978,109250.0,109240.0,0.92842304]
[1748228753750,0.03504978,109250.0,109240.0,1.33732304]
[1748228760326,0.03431748,109250.0,109240.0,1.33732304]
[1748228760928,0.04347004,109250.0,109240.0,0.98274219]
[1748228761140,0.03431748,109250.0,109240.0,0.68350219]
[1748228761355,0.03431748,109250.0,109240.0,1.33728304]
[1748228761490,0.03431748,109250.0,109240.0,1.32274219]
[1748228762304,0.03431748,109250.0,109240.0,1.17650219]
[1748228762514,0.03431748,109250.0,109240.0,1.32274219]
[1748228763127,0.03431748,109250.0,109240.0,1.02350219]
[1748228763370,0.03431748,109250.0,109240.0,1.32274219]
[1748228763700,0.03431748,109250.0,109240.0,1.02350219]
[1748228763833,0.03431748,109250.0,109240.0,1.32274219]
[1748228764252,0.03431748,109250.0,109240.0,1.02350219]
[1748228764504,0.03431748,109250.0,109240.0,1.32274219]
[1748228765604,0.03431748,109250.0,109240.0,0.91384219]
[1748228767666,0.03431748,109250.0,109240.0,0.92838304]
[1748228767874,0.01881748,109250.0,109240.0,0.92838304]
[1748228769628,0.01881748,109250.0,109240.0,0.9575934]
[1748228770834,0.00231748,109250.0,109240.0,0.9575934]
[1748228771435,0.00231748,109250.0,109240.0,1.3664934]
[1748228777316,0.01851748,109250.0,109240.0,1.3664934]
[1748228779418,0.03401748,109250.0,109240.0,1.3664934]
[1748228779944,0.01761748,109250.0,109240.0,1.3664934]
[1748228780573,0.03311748,109250.0,109240.0,1.3664934]
[1748228781564,0.03311748,109250.0,109240.0,1.3664134]
[1748228799182,0.03311748,109250.0,109240.0,1.33720304]
[1748228799783,0.03311748,109250.0,109240.0,1.19096304]
[1748228799959,0.03311748,109250.0,109240.0,1.33720304]
[1748228800579,0.03311748,109250.0,109240.0,1.03804304]
[1748228800793,0.03311748,109250.0,109240.0,1.33720304]
[1748228801774,0.03311748,109250.0,109240.0,1.02350219]
[1748228802138,0.03311748,109250.0,109240.0,1.36643397]
[1748228803789,0.03311748,109250.0,109240.0,0.95753397]
[1748228805266,0.03311748,109250.0,109240.0,1.05273312]
[1748228805452,0.03311748,109250.0,109240.0,1.17153612]
[1748228805657,0.03311748,109250.0,109240.0,0.83153612]
[1748228805902,0.03311748,109250.0,109240.0,1.17153612]
[1748228808436,0.03311748,109250.0,109240.0,1.02529612]
[1748228808599,0.03311748,109250.0,109240.0,1.17153612]
[1748228808938,0.03311748,109250.0,109240.0,1.19267267]
[1748228809151,0.03311748,109250.0,109240.0,1.17153612]
[1748228809760,0.03311748,109250.0,109240.0,0.76263612]
[1748228810135,0.03311748,109250.0,109240.0,0.61639612]
[1748228810304,0.04227012,109250.0,109240.0,0.76263612]
[1748228811629,0.04227021,109250.0,109240.0,0.76263612]
[1748228811849,0.06057642,109250.0,109240.0,0.52685073]
[1748228812044,0.25279609,109250.0,109240.0,0.5268509]
[1748228812252,0.24364336,109250.0,109240.0,0.51769708]
[1748228812406,0.23449038,109250.0,109240.0,0.37123093]
[1748228812606,0.02746346,109230.0,109220.0,1.07821229]
[1748228812830,0.06831828,109230.0,109220.0,0.91376302]
[1748228813000,0.06831828,109230.0,109220.0,0.76088302]
[1748228813224,0.06831828,109230.0,109220.0,0.61464302]
[1748228814043,0.06016346,109230.0,109220.0,0.61864302]
[1748228814253,0.06116346,109230.0,109220.0,0.61864302]
[1748228814499,0.05200872,109230.0,109220.0,0.61864302]
[1748228814672,0.05200872,109230.0,109220.0,0.95864302]
[1748228815688,0.05200872,109230.0,109220.0,0.54974302]
[1748228817029,0.07031811,109230.0,109220.0,0.54974302]
[1748228817222,0.06116329,109230.0,109220.0,0.69602302]
[1748228817423,0.06116329,109230.0,109220.0,0.54974302]
[1748228817711,0.04285423,109230.0,109220.0,0.54974302]
[1748228817918,0.05200889,109230.0,109220.0,0.20974302]
[1748228818242,0.06116363,109230.0,109220.0,0.54974302]
[1748228818471,0.06116371,109230.0,109220.0,0.54974302]
[1748228818905,0.25341858,109230.0,109220.0,0.53143229]
[1748228819465,0.25341858,109230.0,109220.0,0.5405877]
[1748228820175,0.06116371,109230.0,109220.0,0.54974294]
[1748228820373,0.07031862,109230.0,109220.0,0.54974294]
[1748228820642,0.07031862,109230.0,109220.0,0.51357531]
[1748228821848,0.07947361,109230.0,109220.0,0.51357531]
[1748228822187,0.07947361,109230.0,109220.0,0.50442007]
[1748228822366,0.07031929,109230.0,109220.0,0.50442007]
[1748228822983,0.25341917,109230.0,109220.0,0.48610908]
[1748228823187,0.86839198,109230.0,109220.0,0.004]
[1748228823417,0.85823716,109230.0,109220.0,0.002]
[1748228823568,0.2234723,109220.0,109210.0,0.50481918]
[1748228823773,0.04951124,109220.0,109210.0,0.51397526]
[1748228824519,0.05866698,109220.0,109210.0,0.51397526]
[1748228824838,0.05966698,109220.0,109210.0,0.51497526]
[1748228825421,0.06882281,109220.0,109210.0,0.51497526]
[1748228825720,0.04135507,109220.0,109210.0,0.51497526]
[1748228825923,0.0332,109220.0,109210.0,0.51797526]
[1748228826678,0.05151039,109220.0,109210.0,0.14134926]
[1748228827747,0.0332,109220.0,109210.0,0.16881859]
[1748228828134,0.04235507,109220.0,109210.0,0.17797526]
[1748228828727,0.05151039,109220.0,109210.0,0.17797526]
[1748228829302,0.04235507,109220.0,109210.0,0.17797526]
[1748228829433,0.0332,109220.0,109210.0,0.17797526]
[1748228829622,0.04235516,109220.0,109210.0,0.17797526]
[1748228829822,0.05151048,109220.0,109210.0,0.17797526]
[1748228830498,0.0332,109220.0,109210.0,0.17797526]
[1748228830696,0.0332,109220.0,109210.0,0.62206167]
[1748228830906,0.002,109220.0,109210.0,0.62206167]
[1748228831118,0.0328,109220.0,109210.0,0.51797526]
[1748228831290,0.0328,109220.0,109210.0,0.66425526]
[1748228831499,0.04195524,109220.0,109210.0,0.66425526]
[1748228831698,0.04195507,109220.0,109210.0,0.66425526]
[1748228833112,0.05111023,109220.0,109210.0,0.66425526]
[1748228833316,0.05111023,109220.0,109210.0,0.51797526]
[1748228833732,0.06026555,109220.0,109210.0,0.51797526]
[1748228834055,0.06942096,109220.0,109210.0,0.51797526]
[1748228834285,0.05111023,109220.0,109210.0,0.51797526]
[1748228835065,0.06026564,109220.0,109210.0,0.51797526]
[1748228836623,0.0694213,109220.0,109210.0,0.51797526]
[1748228836936,0.05111023,109220.0,109210.0,0.51797526]
[1748228837139,0.0694213,109220.0,109210.0,0.51797526]
[1748228837552,0.06026564,109220.0,109210.0,0.51797526]
[1748228838155,0.267719,109220.0,109210.0,0.14135005]
[1748228838348,0.23422771,109220.0,109210.0,0.004]
[1748228838560,0.72515929,109220.0,109210.0,0.004]
[1748228838978,0.81470485,109220.0,109210.0,0.004]
[1748228839174,0.81370485,109220.0,109210.0,0.001]
[1748228839387,0.90322636,109220.0,109210.0,0.002]
[1748228839626,0.90222636,109220.0,109210.0,0.001]
[1748228839807,0.18313341,109210.0,109200.0,0.15567676]
[1748228840007,0.22610215,109210.0,109200.0,0.13736234]
[1748228840214,0.23194624,109210.0,109200.0,0.13736234]
[1748228840379,0.23194624,109210.0,109200.0,0.1556771]
[1748228840931,0.04065725,109200.0,109190.0,0.50045294]
[1748228841461,0.04981442,109200.0,109190.0,0.50045294]
[1748228842335,0.0579715,109200.0,109190.0,0.50045294]
[1748228842839,0.07728592,109200.0,109190.0,0.49129569]
[1748228843041,0.07728592,109200.0,109190.0,0.50045345]
[1748228843246,0.07828592,109200.0,109190.0,0.50145345]
[1748228843482,0.07828592,109200.0,109190.0,0.49229569]
[1748228843679,0.25227918,109200.0,109190.0,0.50145387]
[1748228844711,0.2431221,109200.0,109190.0,0.49229586]
[1748228846041,0.23396493,109200.0,109190.0,0.47397959]
[1748228846246,0.22480768,109200.0,109190.0,0.34577271]
[1748228846623,0.22480768,109200.0,109190.0,0.35493105]
[1748228846831,0.22480768,109200.0,109190.0,0.36408931]
[1748228847232,0.22480768,109200.0,109190.0,0.50146435]
[1748228847532,0.22380768,109200.0,109190.0,0.50146435]
[1748228847735,0.22580768,109200.0,109190.0,0.50146435]
[1748228848139,0.22580768,109200.0,109190.0,0.50046435]
[1748228848344,0.22580768,109200.0,109190.0,0.50962244]
[1748228848559,0.22780768,109200.0,109190.0,0.00577271]
[1748228849551,0.22780768,109200.0,109190.0,0.01493105]
[1748228850068,0.22780768,109200.0,109190.0,0.00577271]
[1748228851214,0.22780768,109200.0,109190.0,0.01493105]
[1748228851343,0.22780768,109200.0,109190.0,0.00577271]
[1748228851688,0.22780768,109200.0,109190.0,0.001]
[1748228853459,0.22780752,109200.0,109190.0,0.14753313]
[1748228853669,0.07212901,109200.0,109190.0,0.15669097]
[1748228853886,0.08128651,109200.0,109190.0,0.15669097]
[1748228854062,0.07928651,109200.0,109190.0,0.15669097]
[1748228854266,0.05897159,109200.0,109190.0,0.15569097]
[1748228854441,0.06297159,109200.0,109190.0,0.16484873]
[1748228854659,0.06597159,109200.0,109190.0,0.16484873]
[1748228854856,0.07512909,109200.0,109190.0,0.15569097]
[1748228858363,0.04765675,109200.0,109190.0,0.16484873]
[1748228858508,0.06597084,109200.0,109190.0,0.16484873]
[1748228859525,0.07512809,109200.0,109190.0,0.16484873]
[1748228859947,0.25827894,109200.0,109190.0,0.14653313]
[1748228860165,0.24912202,109200.0,109190.0,0.14653313]
[1748228860388,0.02475776,109190.0,109180.0,0.48654588]
[1748228860605,0.04105776,109190.0,109180.0,0.48654588]
[1748228861637,0.04205776,109190.0,109180.0,0.48754588]
[1748228861847,0.24354098,109190.0,109180.0,0.47838762]
[1748228862060,0.24554098,109190.0,109180.0,0.47838762]
[1748228862259,0.24554098,109190.0,109180.0,0.49670523]
[1748228862474,0.07153237,109190.0,109180.0,0.49670523]
[1748228862781,0.23638355,109190.0,109180.0,0.001]
[1748228862935,0.23638355,109190.0,109180.0,0.01931828]
[1748228863137,0.23638355,109190.0,109180.0,0.14754689]
[1748228863354,0.23638355,109190.0,109180.0,0.1567059]
[1748228863570,0.23638355,109190.0,109180.0,0.13838779]
[1748228864244,0.23638355,109190.0,109180.0,0.01015918]
[1748228864383,0.22722529,109190.0,109180.0,0.13838771]
[1748228864627,0.05321643,109190.0,109180.0,0.14754656]
[1748228864813,0.06237394,109190.0,109180.0,0.15670515]
[1748228865030,0.06237335,109190.0,109180.0,0.18416215]
[1748228865231,0.07153153,109190.0,109180.0,0.18416215]
[1748228866103,0.06237335,109190.0,109180.0,0.18416215]
[1748228866359,0.05321543,109190.0,109180.0,0.18416215]
[1748228866565,0.07153144,109190.0,109180.0,0.18416215]
[1748228867306,0.06237335,109190.0,109180.0,0.18416215]
[1748228867423,0.07153144,109190.0,109180.0,0.18416215]
[1748228869144,0.04405759,109190.0,109180.0,0.18416215]
[1748228869274,0.003,109190.0,109180.0,0.18416215]
[1748228870465,0.0185,109190.0,109180.0,0.18416215]
[1748228874399,0.02765759,109190.0,109180.0,0.18416215]
[1748228876289,0.03681526,109190.0,109180.0,0.18416215]
[1748228876861,0.05181526,109190.0,109180.0,0.18416215]
[1748228877049,0.04265759,109190.0,109180.0,0.18416215]
[1748228877426,0.05181535,109190.0,109180.0,0.18416215]
[1748228878486,0.06097327,109190.0,109180.0,0.18416215]
[1748228878924,0.05181535,109190.0,109180.0,0.18416215]
[1748228879222,0.06097327,109190.0,109180.0,0.18416215]
[1748228879423,0.05181535,109190.0,109180.0,0.18416215]
[1748228880317,0.05135741,109190.0,109180.0,0.18416215]
[1748228881311,0.06967368,109190.0,109180.0,0.18416215]
[1748228881522,0.25284063,109190.0,109180.0,0.18416224]
[1748228881720,0.25284063,109190.0,109180.0,0.17500356]
[1748228883256,0.07883202,109190.0,109180.0,0.52416224]
[1748228883898,0.25284138,109190.0,109180.0,0.52416232]
[1748228884275,0.06967443,109190.0,109180.0,0.52416232]
[1748228884680,0.24368362,109190.0,109180.0,0.51500364]
[1748228884880,0.24368362,109190.0,109180.0,0.52416249]
[1748228885787,0.24368362,109190.0,109180.0,0.32988203]
[1748228885934,0.24368362,109190.0,109180.0,0.45811064]
[1748228886137,0.24368362,109190.0,109180.0,0.46726974]
[1748228886737,0.05135783,109190.0,109180.0,0.4764285]
[1748228887135,0.03304206,109190.0,109180.0,0.48558709]
[1748228887473,0.05135749,109190.0,109180.0,0.48558709]
[1748228887715,0.05135741,109190.0,109180.0,0.48558709]
[1748228888093,0.06051525,109190.0,109180.0,0.48558709]
[1748228888299,0.05135741,109190.0,109180.0,0.48558709]
[1748228888505,0.04219965,109190.0,109180.0,0.48558709]
[1748228888702,0.05135741,109190.0,109180.0,0.48558709]
[1748228889110,0.01804206,109190.0,109180.0,0.48558709]
[1748228889317,0.00254206,109190.0,109180.0,0.48558709]
[1748228889517,0.04299965,109190.0,109180.0,0.48558709]
[1748228889771,0.04299982,109190.0,109180.0,0.48558709]
[1748228889980,0.04299973,109190.0,109180.0,0.48558709]
[1748228890175,0.03384206,109190.0,109180.0,0.51304109]
[1748228890496,0.04299973,109190.0,109180.0,0.51304109]
[1748228890676,0.07047409,109190.0,109180.0,0.51304109]
[1748228890988,0.05215765,109190.0,109180.0,0.51304109]
[1748228891175,0.06131583,109190.0,109180.0,0.51304109]
[1748228891765,0.05215765,109190.0,109180.0,0.51304109]
[1748228892394,0.06131583,109190.0,109180.0,0.51304109]
[1748228893101,0.05215765,109190.0,109180.0,0.51304109]
[1748228893464,0.06131583,109190.0,109180.0,0.51304109]
[1748228893703,0.24448337,109190.0,109180.0,0.45811089]
[1748228893866,0.24448337,109190.0,109180.0,0.46726974]
[1748228895412,0.05215807,109190.0,109180.0,0.46726974]
[1748228895614,0.06131625,109190.0,109180.0,0.46726974]
[1748228896847,0.06131625,109190.0,109180.0,0.4764285]
[1748228898473,0.2444832,109190.0,109180.0,0.4764285]
[1748228903254,0.2444832,109190.0,109180.0,0.48558718]
[1748228903801,0.25364146,109190.0,109180.0,0.48558718]
[1748228904001,0.25364146,109190.0,109180.0,0.2835737]
[1748228904348,0.04299998,109190.0,109180.0,0.17402242]
[1748228904553,0.0613155,109190.0,109180.0,0.17402242]
[1748228905320,0.01764206,109190.0,109180.0,0.17402242]
[1748228905515,0.02679965,109190.0,109180.0,0.17402242]
[1748228905941,0.00254206,109190.0,109180.0,0.17402242]
[1748228906465,0.00254206,109190.0,109180.0,0.51402242]
[1748228906866,0.00254206,109190.0,109180.0,0.63566798]
[1748228907066,0.00254206,109190.0,109180.0,0.61986798]
[1748228907275,0.00254206,109190.0,109180.0,0.60356798]
[1748228907688,0.00254206,109190.0,109180.0,0.63102098]
[1748228909488,0.06081583,109190.0,109180.0,0.53231683]
[1748228909693,0.05165765,109190.0,109180.0,0.54147542]
[1748228909906,0.23482511,109190.0,109180.0,0.027453]
[1748228910079,0.05827612,109180.0,109170.0,0.57855157]
[1748228910296,0.06743505,109180.0,109170.0,0.19710765]
[1748228910517,0.05827604,109180.0,109170.0,0.50965165]
[1748228910968,0.05827596,109180.0,109170.0,0.50965165]
[1748228911493,0.05927596,109180.0,109170.0,0.50965165]
[1748228912249,0.06027596,109180.0,109170.0,0.50965165]
[1748228912898,0.06943497,109180.0,109170.0,0.50965165]
[1748228913142,0.06027596,109180.0,109170.0,0.50965165]
[1748228913633,0.07859407,109180.0,109170.0,0.50965165]
[1748228913935,0.25616862,109180.0,109170.0,0.34477271]
[1748228914159,0.24346102,109180.0,109170.0,0.49133268]
[1748228914476,0.24346102,109180.0,109170.0,0.48217291]
[1748228914686,0.24346102,109180.0,109170.0,0.4913326]
[1748228915247,0.23430201,109180.0,109170.0,0.48217291]
[1748228915748,0.23430201,109180.0,109170.0,0.48217308]
[1748228915749,0.22514291,109180.0,109170.0,0.48217308]
[1748228915953,0.22514291,109180.0,109170.0,0.49133293]
[1748228916157,0.22514291,109180.0,109170.0,0.48656022]
[1748228916386,0.22514291,109180.0,109170.0,0.49571999]
[1748228916512,0.22414291,109180.0,109170.0,0.49571999]
[1748228916735,0.22814291,109180.0,109170.0,0.49571999]
[1748228916936,0.22714291,109180.0,109170.0,0.50487968]
[1748228917135,0.23014291,109180.0,109170.0,0.50487968]
[1748228918378,0.23014291,109180.0,109170.0,0.49571999]
[1748228919910,0.22098373,109180.0,109170.0,0.34]
[1748228920115,0.22098373,109180.0,109170.0,0.47740029]
[1748228920555,0.22098373,109180.0,109170.0,0.34]
[1748228920733,0.22098373,109180.0,109170.0,0.46824035]
[1748228920924,0.22098373,109180.0,109170.0,0.48656014]
[1748228922118,0.22098373,109180.0,109170.0,0.49571983]
[1748228922308,0.22098373,109180.0,109170.0,0.48656022]
[1748228922440,0.22098373,109180.0,109170.0,0.49571999]
[1748228923296,0.22098373,109180.0,109170.0,0.47740037]
[1748228923457,0.22098373,109180.0,109170.0,0.48656022]
[1748228923672,0.22098373,109180.0,109170.0,0.49571999]
[1748228923866,0.22098373,109180.0,109170.0,0.34]
[1748228925221,0.22098373,109180.0,109170.0,0.47740029]
[1748228925424,0.22098373,109180.0,109170.0,0.34]
[1748228927574,0.36734373,109180.0,109170.0,0.34]
[1748228928414,0.36734373,109180.0,109170.0,0.34916002]
[1748228928543,0.36734373,109180.0,109170.0,0.35831996]
[1748228929827,0.36734373,109180.0,109170.0,0.34]
[1748228930465,0.46734373,109180.0,109170.0,0.34]
[1748228935864,0.22496036,109170.0,109160.0,0.4821874]
[1748228936521,0.77783152,109170.0,109160.0,0.34]
[1748228936890,0.22496036,109170.0,109160.0,0.34]
[1748228937123,0.22496036,109170.0,109160.0,0.34049848]
[1748228937318,0.22696036,109170.0,109160.0,0.34049848]
[1748228938240,0.22796036,109170.0,109160.0,0.34049848]
[1748228938869,0.78083152,109170.0,109160.0,0.34049848]
[1748228939222,0.22796036,109170.0,109160.0,0.34049848]
[1748228939451,0.22796036,109170.0,109160.0,0.34965926]
[1748228939860,0.22796036,109170.0,109160.0,0.47791136]
[1748228940071,0.22796036,109170.0,109160.0,0.49623249]
[1748228940308,0.06271233,109170.0,109160.0,0.50539276]
[1748228940514,0.07187218,109170.0,109160.0,0.50539276]
[1748228940722,0.25507336,109170.0,109160.0,0.48707205]
[1748228940963,0.24591376,109170.0,109160.0,0.48707205]
[1748228941172,0.79878492,109170.0,109160.0,0.48707205]
[1748228942057,0.79878492,109170.0,109160.0,0.14707205]
[1748228942501,0.78962515,109170.0,109160.0,0.14707205]
[1748228943189,0.78962515,109170.0,109160.0,0.13791136]
[1748228943402,0.7804653,109170.0,109160.0,0.12875058]
[1748228943618,0.7804653,109170.0,109160.0,0.00049848]
[1748228943828,0.77130528,109170.0,109160.0,0.00965934]
[1748228945723,0.22759406,109170.0,109160.0,0.14707213]
[1748228945926,0.78962491,109170.0,109160.0,0.15623265]
[1748228946556,0.05355264,109170.0,109160.0,0.16539292]
[1748228946789,0.19307888,109170.0,109160.0,0.16539292]
[1748228947111,0.20897888,109170.0,109160.0,0.16539292]
[1748228947417,0.18391903,109170.0,109160.0,0.16539292]
[1748228947766,0.21813866,109170.0,109160.0,0.16539292]
[1748228948124,0.22729868,109170.0,109160.0,0.16539292]
[1748228948323,0.003,109170.0,109160.0,0.50539292]
[1748228948555,0.003,109170.0,109160.0,0.52139292]
[1748228948838,0.01215935,109170.0,109160.0,0.52139292]
[1748228949029,0.003,109170.0,109160.0,0.52139292]
[1748228949228,0.01215943,109170.0,109160.0,0.52139292]
[1748228949430,0.003,109170.0,109160.0,0.53809292]
[1748228952947,0.003,109170.0,109160.0,0.62763848]
[1748228953120,0.003,109170.0,109160.0,0.77403848]
[1748228953478,0.003,109170.0,109160.0,0.80149648]
[1748228954371,0.003,109170.0,109160.0,0.76828655]
[1748228954716,0.003,109170.0,109160.0,0.78660776]
[1748228954934,0.003,109170.0,109160.0,0.79576862]
[1748228959886,0.003,109170.0,109160.0,1.20466862]
[1748228969689,0.003,109170.0,109160.0,1.02556862]
[1748228969871,0.003,109170.0,109160.0,1.17192862]
[1748228971063,0.003,109170.0,109160.0,1.18852862]
[1748228972354,0.003,109170.0,109160.0,1.20422862]
[1748228977634,0.003,109170.0,109160.0,1.23346543]
[1748228980279,0.003,109170.0,109160.0,1.20422862]
[1748228982547,0.003,109170.0,109160.0,1.05786862]
[1748228982708,0.003,109170.0,109160.0,1.20422862]
[1748228985558,0.003,109170.0,109160.0,1.18852862]
[1748228986474,0.003,109170.0,109160.0,1.20542862]
[1748228988767,0.003,109170.0,109160.0,1.18852862]
[1748228990956,0.003,109170.0,109160.0,1.17192862]
[1748228997659,0.0368,109170.0,109160.0,1.17896862]
[1748228997993,0.0368,109170.0,109160.0,1.32528862]
[1748228998557,0.04595927,109170.0,109160.0,1.01102777]
[1748228998780,0.07343807,109170.0,109160.0,0.63046835]
[1748228998997,0.07343807,109170.0,109160.0,0.23072854]
[1748228999659,0.07343799,109170.0,109160.0,0.23072854]
[1748228999861,0.07343799,109170.0,109160.0,0.5415128]
[1748229000332,0.25663917,109170.0,109160.0,0.52319217]
[1748229000577,0.07343866,109170.0,109160.0,0.54151288]
[1748229000799,0.06427872,109170.0,109160.0,0.54151288]
[1748229002658,0.05511895,109170.0,109160.0,0.54151288]
[1748229002841,0.06427872,109170.0,109160.0,0.54151288]
[1748229003694,0.06427864,109170.0,109160.0,0.54151288]
[1748229005329,0.04595935,109170.0,109160.0,0.54151288]
[1748229005551,0.04595943,109170.0,109160.0,0.54151288]
[1748229005769,0.05511903,109170.0,109160.0,0.54151288]
[1748229006225,0.0368,109170.0,109160.0,0.54151288]
[1748229006434,0.04595935,109170.0,109160.0,0.54151288]
[1748229007063,0.05511878,109170.0,109160.0,0.54151288]
[1748229009548,0.0368,109170.0,109160.0,0.54151288]
[1748229009804,0.0368,109170.0,109160.0,0.63105844]
[1748229011079,0.0368,109170.0,109160.0,0.64559929]
[1748229011290,0.003,109170.0,109160.0,0.64559929]
[1748229011523,0.0373,109170.0,109160.0,0.64559929]
[1748229013807,0.0373,109170.0,109160.0,0.79195929]
[1748229015915,0.0373,109170.0,109160.0,1.20085929]
[1748229020877,0.0373,109170.0,109160.0,1.03995844]
[1748229021826,0.0373,109170.0,109160.0,0.63105844]
[1748229025299,0.003,109170.0,109160.0,0.64559929]
[1748229027870,0.003,109170.0,109160.0,1.05449929]
[1748229029916,0.01907711,109170.0,109160.0,1.05449929]
[1748229030374,0.03507711,109170.0,109160.0,1.05449929]
[1748229033613,0.03493854,109170.0,109160.0,1.05449929]
[1748229035591,0.03493854,109170.0,109160.0,1.20085929]
[1748229038624,0.01893854,109170.0,109160.0,1.20085929]
[1748229038808,0.00273854,109170.0,109160.0,1.21735929]
[1748229038971,0.00273854,109170.0,109160.0,1.20085929]
[1748229039175,0.03533854,109170.0,109160.0,1.05449929]
[1748229039379,0.03533854,109170.0,109160.0,1.35425929]
[1748229039926,0.03533854,109170.0,109160.0,1.20085929]
[1748229055496,0.03533854,109170.0,109160.0,1.07225575]
[1748229055703,0.03533854,109170.0,109160.0,1.10887327]
[1748229056084,0.03533854,109170.0,109160.0,1.11803396]
[1748229056292,0.03533854,109170.0,109160.0,0.87674841]
[1748229056492,0.04449797,109170.0,109160.0,0.84929141]
[1748229056668,0.05365749,109170.0,109160.0,0.84929141]
[1748229057217,0.07197703,109170.0,109160.0,0.44039141]
[1748229057827,0.06281718,109170.0,109160.0,0.44039141]
[1748229058593,0.07197703,109170.0,109160.0,0.44039141]
[1748229059145,0.25517754,109170.0,109160.0,0.26633653]
[1748229059353,0.23685859,109170.0,109160.0,0.40374941]
[1748229059651,0.23685859,109170.0,109160.0,0.41291018]
[1748229061096,0.23685859,109170.0,109160.0,0.42207079]
[1748229062307,0.23685859,109170.0,109160.0,0.43123123]
[1748229064398,0.04449797,109170.0,109160.0,0.4403915]
[1748229064599,0.03533854,109170.0,109160.0,0.4403915]
[1748229064803,0.01833854,109170.0,109160.0,0.4403915]
[1748229065002,0.01833854,109170.0,109160.0,0.52993706]
[1748229065206,0.01833854,109170.0,109160.0,0.67629706]
[1748229065961,0.00273854,109170.0,109160.0,0.69083791]
[1748229068960,0.00273854,109170.0,109160.0,1.11643791]
[1748229071779,0.00273854,109170.0,109160.0,1.14389391]
[1748229076393,0.00273854,109170.0,109160.0,1.12719391]
[1748229077395,0.00273854,109170.0,109160.0,1.28055391]
[1748229079647,0.03413854,109170.0,109160.0,1.28055391]
[1748229080931,0.00273854,109170.0,109160.0,1.28055391]
[1748229081085,0.00273854,109170.0,109160.0,1.29655391]
[1748229081297,0.00273854,109170.0,109160.0,1.31215391]
[1748229082095,0.00273854,109170.0,109160.0,1.29655391]
[1748229082471,0.00273854,109170.0,109160.0,1.29651391]
[1748229082963,0.00273854,109170.0,109160.0,1.28051391]
[1748229091275,0.00273854,109170.0,109160.0,1.13415391]
[1748229091484,0.03523854,109170.0,109160.0,1.28051391]
[1748229096380,0.00273854,109170.0,109160.0,1.28051391]
[1748229096548,0.00273854,109170.0,109160.0,1.30165046]
[1748229096691,0.00273854,109170.0,109160.0,1.28051391]
[1748229098033,0.00273854,109170.0,109160.0,1.31281391]
[1748229098391,0.03433854,109170.0,109160.0,0.98083391]
[1748229098596,0.03433854,109170.0,109160.0,1.28051391]
[1748229100054,0.03433854,109170.0,109160.0,0.98083391]
[1748229100267,0.03433854,109170.0,109160.0,1.28051391]
[1748229101634,0.03433854,109170.0,109160.0,0.98083391]
[1748229101814,0.03433854,109170.0,109160.0,1.28051391]
[1748229104245,0.03433854,109170.0,109160.0,0.98083391]
[1748229104451,0.03433854,109170.0,109160.0,1.28051391]
[1748229108684,0.03433854,109170.0,109160.0,1.25305791]
[1748229110015,0.03433854,109170.0,109160.0,0.95337791]
[1748229110259,0.03433854,109170.0,109160.0,1.25305791]
[1748229116661,0.03433854,109170.0,109160.0,0.98672138]
[1748229118103,0.03433854,109170.0,109160.0,0.68704138]
[1748229118387,0.03433854,109170.0,109160.0,0.98668138]
[1748229118778,0.03433854,109170.0,109160.0,1.32668138]
[1748229119401,0.03433854,109170.0,109160.0,1.31214053]
[1748229120831,0.03433854,109170.0,109160.0,0.82578053]
[1748229121081,0.05265757,109170.0,109160.0,0.82578053]
[1748229121288,0.06181718,109170.0,109160.0,0.73623497]
[1748229121476,0.04349797,109170.0,109160.0,0.73623497]
[1748229121683,0.05265749,109170.0,109160.0,0.73623497]
[1748229122176,0.05265749,109170.0,109160.0,0.32733497]
[1748229123403,0.04349797,109170.0,109160.0,0.32733497]
[1748229125348,0.03433854,109170.0,109160.0,0.32733497]
[1748229125579,0.04349789,109170.0,109160.0,0.32733497]
[1748229125804,0.01803854,109170.0,109160.0,0.77142138]
[1748229126025,0.00273854,109170.0,109160.0,0.78822138]
[1748229126249,0.00273854,109170.0,109160.0,0.80472138]
[1748229127969,0.00273854,109170.0,109160.0,1.21362138]
[1748229131746,0.00273854,109170.0,109160.0,1.22122734]
[1748229131950,0.00273854,109170.0,109160.0,1.20472734]
[1748229138929,0.00273854,109170.0,109160.0,1.22102734]
[1748229139898,0.001,109170.0,109160.0,1.24847834]
[1748229140138,0.002,109170.0,109160.0,1.24847834]
[1748229140562,0.001,109170.0,109160.0,1.24847834]
[1748229140751,0.002,109170.0,109160.0,1.24947834]
[1748229144032,0.002,109170.0,109160.0,1.23317834]
[1748229144712,0.002,109170.0,109160.0,1.36273834]
[1748229147554,0.002,109170.0,109160.0,1.37883834]
[1748229147807,0.002,109170.0,109160.0,1.39463834]
[1748229149721,0.1,109180.0,109170.0,0.52344021]
[1748229149914,0.1,109180.0,109170.0,0.61298577]
[1748229150492,0.1,109180.0,109170.0,0.64043377]
[1748229150883,0.09572,109180.0,109170.0,0.64043377]
[1748229151350,0.09872,109180.0,109170.0,0.64043377]
[1748229151546,0.09872,109180.0,109170.0,1.04933377]
[1748229151915,0.05458,109180.0,109170.0,1.04933377]
[1748229152361,0.00986658,109180.0,109170.0,1.04933377]
[1748229152773,0.00786658,109180.0,109170.0,1.04933377]
[1748229152981,0.00786658,109180.0,109170.0,0.81754999]
[1748229153308,0.00886658,109180.0,109170.0,0.95594935]
[1748229153939,0.0326,109200.0,109190.0,0.15191505]
[1748229154143,0.0326,109200.0,109190.0,0.54102061]
[1748229154922,0.0326,109200.0,109190.0,0.88102061]
[1748229155469,0.0366,109200.0,109190.0,0.88202061]
[1748229156210,0.0396,109200.0,109190.0,0.88302061]
[1748229157493,0.0396,109200.0,109190.0,1.29192061]
[1748229159692,0.0396,109200.0,109190.0,1.14560061]
[1748229159902,0.0396,109200.0,109190.0,1.29192061]
[1748229162846,0.04875675,109200.0,109190.0,0.99236061]
[1748229163071,0.04875683,109200.0,109190.0,1.29192061]
[1748229163393,0.04875675,109200.0,109190.0,0.86847976]
[1748229164123,0.0396,109200.0,109190.0,0.63010073]
[1748229164320,0.0396,109200.0,109190.0,0.74633838]
[1748229165099,0.04875683,109200.0,109190.0,0.74633838]
[1748229165374,0.0396,109200.0,109190.0,0.74633838]
[1748229165583,0.04875675,109200.0,109190.0,0.74633838]
[1748229165793,0.0396,109200.0,109190.0,0.74621549]
[1748229166064,0.04875683,109200.0,109190.0,0.74621549]
[1748229166305,0.04875683,109200.0,109190.0,0.44665549]